fUSD/lending_fUSD_20250427
["ID","MTS","AMOUNT","RATE_DAILY","PERIOD"]
[359163953,1745757043850,-400.0,0.00019998,2]
[359163954,1745757043861,-400.0,0.00019998,2]
[359163955,1745757043871,-400.0,0.00019998,2]
[359163956,1745757043881,-400.0,0.00019998,2]
[359163957,1745757043891,-400.0,0.00019998,2]
[359163958,1745757043902,-400.0,0.00019998,2]
[359163959,1745757043913,-400.0,0.00019998,2]
[359163960,1745757043923,-400.0,0.00019998,2]
[359163961,1745757043934,-400.0,0.00019998,2]
[359163962,1745757043944,-400.0,0.00019998,2]
[359163963,1745757043955,-400.0,0.00019998,2]
[359163964,1745757043965,-400.0,0.00019998,2]
[359163965,1745757043975,-400.0,0.00019998,2]
[359163966,1745757043985,-186.90897561,0.00019998,2]
[359163967,1745757043996,-418.11501415,0.00019998,2]
[359163968,1745757044007,-653.46,0.00019998,2]
[359163969,1745757044018,-400.0,0.00019998,2]
[359163970,1745757044028,-400.0,0.00019998,2]
[359163971,1745757044039,-400.0,0.00019998,2]
[359163972,1745757044049,-400.0,0.00019998,2]
[359163973,1745757044060,-400.0,0.00019998,2]
[359163974,1745757044070,-400.0,0.00019998,2]
[359163975,1745757044080,-400.0,0.00019998,2]
[359163976,1745757044091,-400.0,0.00019998,2]
[359163977,1745757044101,-1768.2,0.00019998,2]
[359163978,1745757044111,-151.0,0.00019998,2]
[359163979,1745757044122,-151.0,0.00019998,2]
[359163980,1745757044132,-400.0,0.00019998,2]
[359163981,1745757044143,-7123.23,0.00019998,2]
[359163982,1745757044153,-400.0,0.00019998,2]
[359163984,1745757044501,-400.0,0.00019998,2]
[359163985,1745757044519,-400.0,0.00019998,2]
[359163986,1745757044529,-694.37,0.00019998,2]
[359163987,1745757044539,-26979.815453,0.00019998,2]
[359163988,1745757044569,-565.32665385,0.00019998,2]
[359163989,1745757044584,-1904.64565408,0.00019998,2]
[359163990,1745757044596,-16127.51638171,0.00019998,2]
[359163991,1745757044998,-182.90119853,0.00019899,2]
[359163992,1745757045008,-400.0,0.00019899,2]
[359163993,1745757045018,-879.12233727,0.000199,2]
[359163994,1745757045037,-3567.3372,0.000199,2]
[359163997,1745757045927,-1351.89854198,0.000199,2]
[359163998,1745757045937,-3.80145804,0.00019929,2]
[359163999,1745757046250,-400.0,0.00019899,2]
[359164000,1745757046260,-917.42154196,0.00019929,2]
[359164001,1745757046270,-400.0,0.00019956,2]
[359164002,1745757046280,-3170.21585736,0.00019998,2]
[359164003,1745757046290,-2863.82865612,0.00019998,2]
[359164004,1745757046302,-2817.03134388,0.00019998,2]
[359164005,1745757046311,-960.12865612,0.00019998,2]
[359164006,1745757046334,-324.80047243,0.00019799,2]
[359164007,1745757046349,-627.4548956,0.00019799,2]
[359164008,1745757046416,-267.61826497,0.00019799,2]
[359164010,1745757046425,-1800.18134388,0.00019998,2]
[359164012,1745757046435,-400.0,0.00019998,2]
[359164013,1745757046444,-400.0,0.00019998,2]
[359164014,1745757046453,-679.61,0.00019998,2]
[359164015,1745757046463,-400.0,0.00019998,2]
[359164016,1745757046472,-186.07839115,0.00019998,2]
[359164018,1745757057419,1050.14392195,0.00019,2]
[359164019,1745757057440,10000.0,0.00019,2]
[359164020,1745757057462,10000.0,0.00019,2]
[359164021,1745757057485,10000.0,0.00019,2]
[359164022,1745757057510,10000.0,0.00019,2]
[359164023,1745757057532,10000.0,0.00019,2]
[359164024,1745757057555,10000.0,0.00019,2]
[359164025,1745757057766,10000.0,0.00019,2]
[359164026,1745757057789,8432.55586558,0.00019,2]
[359164027,1745757099902,250.0,0.00017,2]
[359164028,1745757100965,300.0,0.00019,2]
[359164029,1745757106535,285.28,0.00019102,2]
[359164036,1745757276646,732.16413442,0.00019054,2]
[359164037,1745757276668,337.80586558,0.00019054,2]
[359164038,1745757492494,163.6329422,0.000193,20]
[359164039,1745757509939,891.277,0.0003776,49]
[359164040,1745757661075,200000.0,0.00041,30]
[359164041,1745757698431,30000.0,0.0003,120]
[359164042,1745757701923,157.76,0.0004,30]
[359164043,1745757702336,157.76,0.0004,30]
[359164044,1745757704002,333.83,0.00041095,120]
[359164045,1745757754040,100000.0,0.00041,30]
[359164046,1745757792493,150.0,0.00041,30]
[359164047,1745757796365,249.26016231,0.00041,30]
[359164048,1745757826310,200000.0,0.00041,30]
[359164049,1745757853688,225.50016213,0.00041,30]
[359164050,1745757987396,401.83,0.00016989,2]
[359164051,1745757987610,401.83,0.00019253,2]
[359164062,1745758157000,1000.0,0.00018898,2]
[359164078,1745758232077,-880.4070792,0.00019799,2]
[359164080,1745758232086,-200.0,0.00019799,2]
[359164086,1745758232296,-250.0,0.00019799,2]
[359164087,1745758232306,-200.0,0.00019799,2]
[359164088,1745758232316,-772.0148,0.000198,2]
[359164089,1745758232326,-242.0,0.0001981,2]
[359164090,1745758232335,-200.0,0.00019838,2]
[359164091,1745758232344,-2589.2538,0.00019857,2]
[359164092,1745758232354,-1200.0,0.00019857,2]
[359164093,1745758232363,-192.99789326,0.00019858,2]
[359164094,1745758232371,-500.0,0.00019858,2]
[359164095,1745758232380,-500.0,0.00019858,2]
[359164096,1745758232389,-500.0,0.00019858,2]
[359164097,1745758232398,-500.0,0.00019858,2]
[359164098,1745758232408,-500.0,0.00019858,2]
[359164100,1745758232416,-500.0,0.00019858,2]
[359164101,1745758232425,-500.0,0.00019858,2]
[359164102,1745758232433,-500.0,0.00019858,2]
[359164103,1745758232442,-624.88779087,0.00019858,2]
[359164104,1745758232451,-500.0,0.00019858,2]
[359164105,1745758232459,-500.0,0.00019858,2]
[359164106,1745758232468,-5066.8175,0.00019863,2]
[359164107,1745758232477,-269.34543133,0.00019884,2]
[359164108,1745758232486,-9905.182,0.00019884,2]
[359164109,1745758232494,-170.22702337,0.00019885,2]
[359164110,1745758232503,-269.3454313,0.00019886,2]
[359164111,1745758232512,-269.3454313,0.00019888,2]
[359164112,1745758232521,-269.3454313,0.00019889,2]
[359164114,1745758232529,-269.3454313,0.00019891,2]
[359164116,1745758232538,-269.3454313,0.00019893,2]
[359164118,1745758232546,-269.3454313,0.00019895,2]
[359164120,1745758232555,-269.3454313,0.00019896,2]
[359164122,1745758232563,-7877.588,0.00019898,2]
[359164125,1745758232571,-269.3454313,0.00019898,2]
[359164127,1745758232578,-151.0,0.00019899,2]
[359164128,1745758232584,-151.0,0.00019899,2]
[359164130,1745758232590,-151.0,0.00019899,2]
[359164132,1745758232597,-400.0,0.00019899,2]
[359164134,1745758232604,-400.0,0.00019899,2]
[359164135,1745758232612,-400.0,0.00019899,2]
[359164137,1745758232619,-400.0,0.00019899,2]
[359164139,1745758232625,-400.0,0.00019899,2]
[359164141,1745758232632,-400.0,0.00019899,2]
[359164142,1745758232638,-416.70939091,0.00019899,2]
[359164144,1745758232645,-400.0,0.00019899,2]
[359164146,1745758232653,-400.0,0.00019899,2]
[359164148,1745758232662,-418.95123881,0.00019899,2]
[359164149,1745758232671,-413.90398376,0.00019899,2]
[359164150,1745758232680,-400.0,0.00019899,2]
[359164151,1745758232689,-400.0,0.00019899,2]
[359164152,1745758232699,-400.0,0.00019899,2]
[359164153,1745758232708,-400.0,0.00019899,2]
[359164154,1745758232718,-400.0,0.00019899,2]
[359164155,1745758232727,-400.0,0.00019899,2]
[359164156,1745758232737,-400.0,0.00019899,2]
[359164157,1745758232748,-218.72541171,0.00019899,2]
[359164158,1745758232757,-376.2873802,0.00019899,2]
[359164159,1745758232766,-400.0,0.00019899,2]
[359164160,1745758232776,-400.0,0.00019899,2]
[359164161,1745758232785,-400.0,0.00019899,2]
[359164162,1745758232794,-160.39282619,0.00019899,2]
[359164163,1745758232807,-4.77673215,0.00019899,2]
[359164164,1745758232816,-265.57126865,0.00019899,2]
[359164165,1745758232836,-134.42873135,0.00019899,2]
[359164166,1745758232845,-408.96783508,0.00019899,2]
[359164167,1745758232855,-3.86197059,0.00019899,2]
[359164168,1745758232866,-490.21802941,0.00019899,2]
[359164169,1745758232875,-231.23248494,0.00019899,2]
[359164170,1745758232903,-212.01735173,0.00019899,2]
[359164171,1745758232912,-262.98264827,0.00019899,2]
[359164233,1745758238282,-137.01735173,0.00019899,2]
[359164234,1745758238292,-400.0,0.00019899,2]
[359164235,1745758238301,-25.26581623,0.00019899,2]
[359164236,1745758238390,-319.80069514,0.00019899,2]
[359164237,1745758238401,-54.93348863,0.00019899,2]
[359164238,1745758238410,-400.0,0.00019899,2]
[359164239,1745758238419,-400.0,0.00019899,2]
[359164240,1745758238428,-400.0,0.00019899,2]
[359164241,1745758238438,-400.0,0.00019899,2]
[359164242,1745758238447,-416.57,0.00019899,2]
[359164243,1745758238457,-406.00572695,0.00019899,2]
[359164244,1745758238466,-400.0,0.00019899,2]
[359164245,1745758238475,-451.67,0.00019899,2]
[359164246,1745758238483,-420.6709194,0.00019899,2]
[359164247,1745758238492,-400.0,0.00019899,2]
[359164248,1745758238501,-400.0,0.00019899,2]
[359164249,1745758238511,-400.0,0.00019899,2]
[359164250,1745758238520,-400.0,0.00019899,2]
[359164251,1745758238530,-400.0,0.00019899,2]
[359164252,1745758238539,-400.0,0.00019899,2]
[359164253,1745758238548,-450.78,0.00019899,2]
[359164255,1745758238557,-400.0,0.00019899,2]
[359164256,1745758238567,-400.0,0.00019899,2]
[359164257,1745758238576,-400.0,0.00019899,2]
[359164258,1745758238586,-400.0,0.00019899,2]
[359164259,1745758238595,-400.0,0.00019899,2]
[359164260,1745758238604,-400.0,0.00019899,2]
[359164262,1745758238613,-400.0,0.00019899,2]
[359164263,1745758238622,-400.0,0.00019899,2]
[359164264,1745758238632,-449.04,0.00019899,2]
[359164265,1745758238641,-282.36439032,0.00019899,2]
[359164266,1745758238651,-400.0,0.00019899,2]
[359164267,1745758238660,-400.0,0.00019899,2]
[359164268,1745758238670,-400.0,0.00019899,2]
[359164269,1745758238679,-400.0,0.00019899,2]
[359164270,1745758238689,-408.91,0.00019899,2]
[359164271,1745758238698,-400.0,0.00019899,2]
[359164272,1745758238708,-400.0,0.00019899,2]
[359164273,1745758238717,-400.0,0.00019899,2]
[359164274,1745758238726,-400.0,0.00019899,2]
[359164275,1745758238736,-400.0,0.00019899,2]
[359164276,1745758238745,-400.0,0.00019899,2]
[359164277,1745758238755,-400.0,0.00019899,2]
[359164278,1745758238764,-400.0,0.00019899,2]
[359164280,1745758238774,-290.18,0.00019899,2]
[359164281,1745758238783,-562.03,0.00019899,2]
[359164282,1745758238793,-490.17,0.00019899,2]
[359164283,1745758238802,-1858.95,0.00019899,2]
[359164284,1745758238811,-1042.95,0.00019899,2]
[359164285,1745758238822,-400.0,0.00019899,2]
[359164286,1745758238832,-400.0,0.00019899,2]
[359164287,1745758238841,-400.0,0.00019899,2]
[359164288,1745758238851,-400.0,0.00019899,2]
[359164289,1745758238860,-400.0,0.00019899,2]
[359164290,1745758238870,-400.0,0.00019899,2]
[359164291,1745758238879,-442.96,0.00019899,2]
[359164292,1745758238888,-400.0,0.00019899,2]
[359164293,1745758238897,-400.0,0.00019899,2]
[359164294,1745758238907,-400.0,0.00019899,2]
[359164295,1745758238916,-400.0,0.00019899,2]
[359164296,1745758238925,-400.0,0.00019899,2]
[359164297,1745758238934,-481.07,0.00019899,2]
[359164298,1745758238944,-400.0,0.00019899,2]
[359164299,1745758238954,-400.0,0.00019899,2]
[359164300,1745758238964,-400.0,0.00019899,2]
[359164301,1745758238973,-400.0,0.00019899,2]
[359164302,1745758238982,-400.0,0.00019899,2]
[359164303,1745758238991,-400.0,0.00019899,2]
[359164304,1745758239001,-400.0,0.00019899,2]
[359164305,1745758239010,-400.0,0.00019899,2]
[359164306,1745758239019,-400.0,0.00019899,2]
[359164307,1745758239030,-400.0,0.00019899,2]
[359164308,1745758239039,-1358.99,0.00019899,2]
[359164309,1745758239048,-422.3,0.00019899,2]
[359164310,1745758239058,-400.0,0.00019899,2]
[359164311,1745758239071,-400.0,0.00019899,2]
[359164312,1745758239081,-390.0,0.00019899,2]
[359164313,1745758239090,-400.0,0.00019899,2]
[359164314,1745758239099,-450.42,0.00019899,2]
[359164315,1745758239109,-500.0,0.000199,2]
[359164316,1745758239118,-151.0,0.000199,2]
[359164317,1745758239127,-178.34399956,0.000199,2]
[359164318,1745758239137,-269.3454313,0.000199,2]
[359164319,1745758239147,-275.53259068,0.000199,2]
[359164320,1745758239156,-199.93840045,0.000199,2]
[359164321,1745758239165,-796.0,0.0001994,2]
[359164322,1745758239175,-554.052,0.0001994,2]
[359164323,1745758239184,-3095.354,0.0001994,2]
[359164324,1745758239193,-2284.943,0.0001994,2]
[359164325,1745758239202,-877.0,0.0001994,2]
[359164326,1745758239211,-150.647,0.0001994,2]
[359164327,1745758239220,-400.0,0.00019956,2]
[359164328,1745758239230,-400.0,0.00019956,2]
[359164329,1745758239239,-400.0,0.00019956,2]
[359164330,1745758239248,-400.0,0.00019956,2]
[359164331,1745758239257,-400.0,0.00019956,2]
[359164332,1745758239267,-400.0,0.00019956,2]
[359164333,1745758239276,-400.0,0.00019956,2]
[359164334,1745758239285,-400.0,0.00019956,2]
[359164335,1745758239294,-400.0,0.00019956,2]
[359164336,1745758239304,-400.0,0.00019956,2]
[359164337,1745758239313,-400.0,0.00019956,2]
[359164338,1745758239322,-400.0,0.00019956,2]
[359164339,1745758239332,-400.0,0.00019956,2]
[359164340,1745758239341,-400.0,0.00019956,2]
[359164341,1745758239350,-410.62084449,0.00019956,2]
[359164342,1745758239359,-458.2918431,0.00019956,2]
[359164343,1745758239368,-400.0,0.00019956,2]
[359164344,1745758239377,-540.44979702,0.00019956,2]
[359164345,1745758239386,-400.0,0.00019956,2]
[359164346,1745758239395,-410.39359262,0.00019956,2]
[359164347,1745758239405,-400.0,0.00019956,2]
[359164348,1745758239414,-400.0,0.00019956,2]
[359164349,1745758239423,-184.47188474,0.00019956,2]
[359164350,1745758239432,-522.62816855,0.00019956,2]
[359164351,1745758239441,-400.0,0.00019956,2]
[359164352,1745758239451,-400.0,0.00019956,2]
[359164353,1745758239460,-400.0,0.00019956,2]
[359164354,1745758239469,-400.0,0.00019956,2]
[359164355,1745758239478,-400.0,0.00019956,2]
[359164356,1745758239487,-203.26657215,0.00019956,2]
[359164357,1745758239496,-400.0,0.00019956,2]
[359164358,1745758239505,-400.0,0.00019956,2]
[359164359,1745758239515,-400.0,0.00019956,2]
[359164360,1745758239523,-400.0,0.00019956,2]
[359164361,1745758239533,-400.0,0.00019956,2]
[359164362,1745758239543,-400.0,0.00019956,2]
[359164363,1745758239552,-400.0,0.00019956,2]
[359164364,1745758239562,-400.0,0.00019956,2]
[359164365,1745758239774,-400.0,0.00019956,2]
[359164366,1745758239785,-400.0,0.00019956,2]
[359164367,1745758239795,-213.78040822,0.00019956,2]
[359164368,1745758239804,-400.0,0.00019956,2]
[359164369,1745758239814,-400.0,0.00019956,2]
[359164370,1745758239824,-400.0,0.00019956,2]
[359164371,1745758239834,-400.0,0.00019956,2]
[359164372,1745758239843,-400.0,0.00019956,2]
[359164373,1745758239853,-500.0,0.00019973,2]
[359164374,1745758239862,-500.0,0.00019973,2]
[359164375,1745758239872,-214.79670661,0.00019973,2]
[359164376,1745758239881,-500.0,0.00019973,2]
[359164377,1745758239891,-160.84,0.00019974,2]
[359164378,1745758239900,-235.58,0.00019975,2]
[359164379,1745758239910,-400.0,0.00019983,2]
[359164380,1745758239920,-221.82565088,0.00019983,2]
[359164381,1745758239931,-400.0,0.00019983,2]
[359164382,1745758239941,-400.0,0.00019983,2]
[359164383,1745758239951,-212.52966365,0.00019983,2]
[359164384,1745758239961,-424.04701998,0.00019983,2]
[359164385,1745758239971,-420.57089888,0.00019983,2]
[359164386,1745758239980,-428.59990219,0.00019983,2]
[359164387,1745758239989,-400.0,0.00019983,2]
[359164388,1745758239999,-400.0,0.00019983,2]
[359164389,1745758240009,-539.56964188,0.00019983,2]
[359164390,1745758240018,-401.32708848,0.00019983,2]
[359164391,1745758240027,-400.0,0.00019983,2]
[359164392,1745758240036,-250.0,0.00019983,2]
[359164393,1745758240046,-400.0,0.00019983,2]
[359164394,1745758240056,-400.0,0.00019983,2]
[359164395,1745758240066,-380.62777358,0.00019983,2]
[359164396,1745758240080,-518.03427882,0.00019983,2]
[359164398,1745758240089,-425.41760534,0.00019983,2]
[359164399,1745758240099,-400.0,0.00019983,2]
[359164401,1745758240315,-400.0,0.00019983,2]
[359164402,1745758240329,-444.54,0.00019983,2]
[359164403,1745758240338,-400.0,0.00019983,2]
[359164404,1745758240347,-400.0,0.00019983,2]
[359164405,1745758240357,-400.0,0.00019983,2]
[359164406,1745758240367,-400.0,0.00019983,2]
[359164407,1745758240376,-400.0,0.00019983,2]
[359164408,1745758240385,-400.0,0.00019983,2]
[359164409,1745758240394,-400.0,0.00019983,2]
[359164410,1745758240403,-400.0,0.00019983,2]
[359164411,1745758240412,-400.0,0.00019983,2]
[359164412,1745758240422,-525.59,0.00019983,2]
[359164413,1745758240431,-400.0,0.00019983,2]
[359164414,1745758240440,-400.0,0.00019983,2]
[359164415,1745758240449,-400.0,0.00019983,2]
[359164416,1745758240458,-400.0,0.00019983,2]
[359164417,1745758240468,-400.0,0.00019983,2]
[359164418,1745758240477,-400.0,0.00019983,2]
[359164419,1745758240487,-400.0,0.00019983,2]
[359164420,1745758240496,-400.0,0.00019983,2]
[359164421,1745758240505,-400.0,0.00019983,2]
[359164422,1745758240514,-400.0,0.00019983,2]
[359164423,1745758240523,-400.0,0.00019983,2]
[359164424,1745758240532,-430.31,0.00019983,2]
[359164425,1745758240542,-400.0,0.00019983,2]
[359164426,1745758240551,-400.0,0.00019983,2]
[359164427,1745758240560,-2809.19,0.00019983,2]
[359164428,1745758240571,-400.0,0.00019983,2]
[359164429,1745758240580,-400.0,0.00019983,2]
[359164430,1745758240590,-413.87,0.00019983,2]
[359164431,1745758240599,-400.0,0.00019983,2]
[359164432,1745758240608,-400.0,0.00019983,2]
[359164433,1745758240617,-400.0,0.00019983,2]
[359164434,1745758240626,-400.0,0.00019983,2]
[359164435,1745758240636,-400.0,0.00019983,2]
[359164436,1745758240645,-400.0,0.00019983,2]
[359164437,1745758240654,-400.0,0.00019983,2]
[359164438,1745758240664,-400.0,0.00019983,2]
[359164439,1745758240673,-400.0,0.00019983,2]
[359164440,1745758240682,-400.0,0.00019983,2]
[359164441,1745758240691,-841.91,0.00019983,2]
[359164442,1745758240700,-400.0,0.00019983,2]
[359164443,1745758240710,-450.57,0.00019983,2]
[359164444,1745758240719,-400.0,0.00019983,2]
[359164445,1745758240728,-455.75921299,0.00019983,2]
[359164446,1745758240737,-400.0,0.00019983,2]
[359164447,1745758240746,-177.94257697,0.00019983,2]
[359164448,1745758240756,-322.34295141,0.00019983,2]
[359164449,1745758240770,-77.65704859,0.00019983,2]
[359164450,1745758240779,-395.53451017,0.00019983,2]
[359164451,1745758240794,-4.46548983,0.00019983,2]
[359164452,1745758240803,-400.0,0.00019983,2]
[359164453,1745758240813,-1018.03757837,0.00019983,2]
[359164454,1745758240834,-416.86760887,0.00019983,2]
[359164455,1745758241140,-624.98753232,0.00019857,2]
[359164456,1745758241151,-181.14481276,0.00019983,2]
[359164457,1745758241161,-25.07164292,0.00019983,2]
[359164458,1745758241176,-258.14966418,0.00019983,2]
[359164459,1745758241201,-809.2686929,0.00019983,2]
[359164460,1745758241211,-400.0,0.00019983,2]
[359164461,1745758241221,-400.0,0.00019983,2]
[359164462,1745758241232,-544.82640004,0.00019983,2]
[359164463,1745758241242,-400.0,0.00019983,2]
[359164464,1745758241251,-480.52,0.00019983,2]
[359164465,1745758241261,-474.17,0.00019983,2]
[359164466,1745758241270,-155.33448567,0.00019983,2]
[359164467,1745758241279,-156.906809,0.00019984,2]
[359164468,1745758241288,-151.0,0.00019984,2]
[359164469,1745758241298,-151.0,0.00019984,2]
[359164470,1745758241307,-151.0,0.00019984,2]
[359164471,1745758241316,-151.0,0.00019984,2]
[359164472,1745758241328,-151.0,0.00019984,2]
[359164473,1745758241337,-151.0,0.00019984,2]
[359164474,1745758241347,-151.0,0.00019984,2]
[359164475,1745758241356,-13169.7490044,0.00019984,2]
[359164476,1745758241365,-151.0,0.00019984,2]
[359164477,1745758241375,-151.0,0.00019984,2]
[359164478,1745758241384,-19348.07741645,0.00019984,2]
[359164479,1745758241918,-253.99124602,0.00019984,2]
[359164484,1745758243215,-259.00475537,0.00019984,2]
[359164485,1745758243226,-16871.80395819,0.00019984,2]
[359164486,1745758243320,-1419.63,0.00019984,2]
[359164487,1745758243479,-14638.16296564,0.00019984,2]
[359164498,1745758246147,-827.84125416,0.000198,2]
[359164499,1745758246156,-456.01434326,0.00019983,2]
[359164500,1745758246166,-400.0,0.00019983,2]
[359164501,1745758246176,-1582.42765823,0.00019984,2]
[359164502,1745758246185,-151.0,0.00019984,2]
[359164503,1745758246195,-151.0,0.00019984,2]
[359164504,1745758246204,-151.0,0.00019984,2]
[359164505,1745758246213,-151.0,0.00019984,2]
[359164506,1745758246223,-151.0,0.00019984,2]
[359164507,1745758246232,-400.0,0.00019984,2]
[359164508,1745758246242,-400.0,0.00019985,2]
[359164509,1745758246252,-400.0,0.00019985,2]
[359164510,1745758246262,-400.0,0.00019985,2]
[359164511,1745758246271,-400.0,0.00019985,2]
[359164512,1745758246280,-400.0,0.00019985,2]
[359164513,1745758246290,-400.0,0.00019985,2]
[359164514,1745758246299,-400.0,0.00019985,2]
[359164515,1745758246310,-400.0,0.00019985,2]
[359164516,1745758246319,-400.0,0.00019985,2]
[359164517,1745758246329,-400.0,0.00019985,2]
[359164518,1745758246338,-395.91724304,0.00019985,2]
[359164519,1745758246348,-400.0,0.00019985,2]
[359164520,1745758246357,-273.99950131,0.00019985,2]
[359164521,1745758246377,-126.00049869,0.00019985,2]
[359164522,1745758246386,-400.0,0.00019985,2]
[359164523,1745758246395,-194.03558069,0.00019985,2]
[359164524,1745758246405,-400.0,0.00019985,2]
[359164525,1745758246414,-240.96392062,0.00019985,2]
[359164526,1745758246429,-159.03607938,0.00019985,2]
[359164527,1745758246438,-400.0,0.00019985,2]
[359164528,1745758246447,-616.39,0.00019985,2]
[359164529,1745758246456,-400.0,0.00019985,2]
[359164530,1745758246466,-473.41,0.00019985,2]
[359164531,1745758246475,-400.0,0.00019985,2]
[359164532,1745758246484,-340.35370882,0.00019985,2]
[359164533,1745758246724,-59.64629118,0.00019985,2]
[359164534,1745758246734,-445.76,0.00019985,2]
[359164535,1745758246743,-400.0,0.00019985,2]
[359164536,1745758246752,-400.0,0.00019985,2]
[359164538,1745758246761,-400.0,0.00019985,2]
[359164539,1745758246771,-400.0,0.00019985,2]
[359164540,1745758246780,-170.7107547,0.00019985,2]
[359164541,1745758259894,150.0,0.00018,2]
[359164542,1745758271855,150.0,0.00018,2]
[359164543,1745758280854,150.0,0.00018,2]
[359164544,1745758295377,200.0,0.00018,2]
[359164545,1745758312393,200.0,0.00018,2]
[359164547,1745758333667,150.0,0.00018996,7]
[359164548,1745758550291,319.92,0.00041095,120]
[359164549,1745758575567,1000.0,0.00041095,30]
[359164550,1745758594704,1000.0,0.00041095,30]
[359164551,1745758893274,2500.0,0.00041096,30]
[359164552,1745758933929,200.0,0.00041,30]
[359164553,1745758934086,250.0,0.00017,2]
[359164554,1745758934448,200.0,0.00041,30]
[359164555,1745758934783,200.0,0.00041,30]
[359164556,1745758935363,300.0,0.00019,2]
[359164557,1745758935419,200.0,0.00041,30]
[359164558,1745758935786,200.0,0.00041,30]
[359164559,1745758936221,200.0,0.00041,30]
[359164560,1745758936436,200.0,0.00041,30]
[359164561,1745758936820,348.0,0.00041,30]
[359164562,1745758960224,2500.0,0.00041096,30]
[359164563,1745758983584,2500.0,0.00041096,30]
[359164564,1745759004076,2500.0,0.00041096,30]
[359164565,1745759087593,361.64,0.00017022,2]
[359164566,1745759087794,361.64,0.00019286,2]
[359164567,1745759141080,871.529276,0.00041,34]
[359164568,1745759154800,726.72,0.00018929,2]
[359164569,1745759154821,273.28,0.00018929,2]
[359164584,1745759432341,-618.51482666,0.0001957,2]
[359164585,1745759432352,-250.0,0.00019597,2]
[359164586,1745759432363,-200.0,0.00019623,2]
[359164587,1745759432374,-200.0,0.00019669,2]
[359164588,1745759432384,-500.0,0.00019699,2]
[359164589,1745759432395,-500.0,0.00019699,2]
[359164590,1745759432405,-283.0,0.00019699,2]
[359164591,1745759432415,-634.33728717,0.00019736,2]
[359164592,1745759432424,-200.0,0.00019788,2]
[359164593,1745759432434,-704.3256633,0.00019799,2]
[359164594,1745759432444,-877.0,0.00019869,2]
[359164595,1745759432454,-500.0,0.00019884,2]
[359164596,1745759432463,-765.27314991,0.00019886,2]
[359164600,1745759432554,-278.0,0.00019886,2]
[359164690,1745759438269,-366.44152572,0.00019884,2]
[359164691,1745759438280,-69.23915208,0.00019886,2]
[359164692,1745759438292,-87.48769801,0.00019886,2]
[359164693,1745759438302,-300.0,0.00019899,2]
[359164694,1745759438312,-168.56609644,0.000199,2]
[359164695,1745759438322,-796.0,0.0001994,2]
[359164696,1745759438332,-579.0,0.0001994,2]
[359164697,1745759438342,-197.23737232,0.0001994,2]
[359164698,1745759438355,-155.97662768,0.0001994,2]
[359164699,1745759438365,-161.42289428,0.0001994,2]
[359164700,1745759438380,-114.88310572,0.0001994,2]
[359164701,1745759438391,-400.0,0.00019983,2]